fUSD/lending_fUSD_20260309
["ID","MTS","AMOUNT","RATE_DAILY","PERIOD"]
[408010607,1773022239053,-500.0,0.0001482,2]
[408010608,1773022239062,-500.0,0.0001482,2]
[408010609,1773022239071,-500.0,0.0001482,2]
[408010610,1773022239080,-500.0,0.0001482,2]
[408010611,1773022239089,-500.0,0.0001482,2]
[408010612,1773022239098,-500.0,0.0001482,2]
[408010613,1773022239107,-500.0,0.0001482,2]
[408010614,1773022239116,-500.0,0.0001482,2]
[408010615,1773022239126,-500.0,0.0001482,2]
[408010616,1773022239135,-500.0,0.0001482,2]
[408010617,1773022239144,-500.0,0.0001482,2]
[408010618,1773022239153,-500.0,0.0001482,2]
[408010619,1773022239162,-500.0,0.0001482,2]
[408010620,1773022239171,-500.0,0.0001482,2]
[408010621,1773022239180,-500.0,0.0001482,2]
[408010622,1773022239189,-500.0,0.0001482,2]
[408010623,1773022239198,-500.0,0.0001482,2]
[408010624,1773022239208,-500.0,0.0001482,2]
[408010625,1773022239217,-500.0,0.0001482,2]
[408010626,1773022239226,-500.0,0.0001482,2]
[408010627,1773022239235,-500.0,0.0001482,2]
[408010628,1773022239244,-500.0,0.0001482,2]
[408010629,1773022239253,-500.0,0.0001482,2]
[408010630,1773022239262,-500.0,0.0001482,2]
[408010631,1773022239271,-500.0,0.0001482,2]
[408010632,1773022239281,-500.0,0.0001482,2]
[408010633,1773022239291,-1306.34352323,0.0001482,5]
[408010634,1773022239301,-500.0,0.0001482,2]
[408010635,1773022239310,-1392758.01776014,0.00014821,2]
[408010637,1773022242838,-182.54299593,0.0001482,2]
[408010638,1773022242848,-246.22673294,0.00014821,2]
[408010639,1773022242892,-1106995.75550692,0.00014821,2]
[408010640,1773022242901,-151.0,0.00014821,2]
[408010641,1773022242910,-151.0,0.00014821,2]
[408010642,1773022242919,-2104.57,0.00014853,2]
[408010643,1773022242928,-500.0,0.00014873,2]
[408010644,1773022242937,-500.0,0.00014873,2]
[408010645,1773022242945,-500.0,0.00014873,2]
[408010646,1773022242954,-503.57909426,0.00014873,2]
[408010647,1773022242965,-515.04799021,0.00014899,2]
[408010648,1773022242973,-515.94518395,0.00014899,2]
[408010649,1773022242982,-507.21393636,0.00014899,2]
[408010650,1773022242991,-501.25501866,0.00014899,2]
[408010651,1773022242999,-594.83869206,0.00014899,2]
[408010652,1773022243008,-1100.0,0.000149,5]
[408010653,1773022243017,-7921.82326558,0.00015,2]
[408010654,1773022243025,-250.0,0.00015,2]
[408010655,1773022243034,-500.0,0.00015,30]
[408010656,1773022243043,-500.0,0.00015,30]
[408010658,1773022243052,-500.0,0.00015,30]
[408010660,1773022243060,-500.0,0.00015,30]
[408010661,1773022243069,-800.89811608,0.00015,30]
[408010662,1773022243077,-500.0,0.00015,30]
[408010663,1773022243086,-500.0,0.00015,30]
[408010664,1773022243095,-500.0,0.00015,30]
[408010665,1773022243104,-503.06749724,0.00015,30]
[408010666,1773022243112,-500.0,0.00015,30]
[408010667,1773022243122,-500.0,0.00015,30]
[408010668,1773022243130,-500.0,0.00015,30]
[408010669,1773022243139,-500.0,0.00015,30]
[408010670,1773022243148,-500.0,0.00015,30]
[408010671,1773022243157,-500.0,0.00015,30]
[408010672,1773022243166,-500.0,0.00015,30]
[408010673,1773022243175,-500.0,0.00015,30]
[408010674,1773022243184,-500.0,0.00015,30]
[408010675,1773022243193,-500.0,0.00015,30]
[408010676,1773022243202,-500.0,0.00015,30]
[408010677,1773022243212,-500.0,0.00015,30]
[408010678,1773022243221,-500.0,0.00015,30]
[408010679,1773022243230,-500.0,0.00015,30]
[408010680,1773022243239,-500.0,0.00015,30]
[408010681,1773022243248,-500.0,0.00015,30]
[408010683,1773022243257,-500.0,0.00015,30]
[408010685,1773022243266,-500.0,0.00015,30]
[408010686,1773022243277,-500.0,0.00015,30]
[408010687,1773022243286,-500.0,0.00015,30]
[408010688,1773022243295,-500.0,0.00015,30]
[408010689,1773022243304,-500.0,0.00015,30]
[408010690,1773022243314,-500.0,0.00015,30]
[408010691,1773022243325,-500.0,0.00015,30]
[408010692,1773022243335,-524.62574856,0.00015,30]
[408010693,1773022243345,-500.0,0.00015,30]
[408010694,1773022243355,-500.0,0.00015,30]
[408010695,1773022243364,-500.0,0.00015,30]
[408010696,1773022243374,-500.0,0.00015,30]
[408010697,1773022243383,-500.0,0.00015,30]
[408010698,1773022243392,-700.0,0.00015,30]
[408010699,1773022243401,-700.0,0.00015,30]
[408010700,1773022243410,-700.0,0.00015,30]
[408010701,1773022243420,-700.0,0.00015,30]
[408010702,1773022243429,-700.0,0.00015,30]
[408010703,1773022243439,-700.0,0.00015,30]
[408010704,1773022243448,-500.0,0.00015,30]
[408010705,1773022243457,-700.0,0.00015,30]
[408010706,1773022243467,-700.0,0.00015,30]
[408010707,1773022243476,-700.0,0.00015,30]
[408010708,1773022243484,-500.0,0.00015,30]
[408010709,1773022243494,-700.0,0.00015,30]
[408010710,1773022243503,-700.0,0.00015,30]
[408010711,1773022243512,-700.0,0.00015,30]
[408010712,1773022243521,-500.0,0.00015,30]
[408010713,1773022243530,-700.0,0.00015,30]
[408010714,1773022243539,-700.0,0.00015,30]
[408010715,1773022243548,-762.46089344,0.00015,30]
[408010716,1773022243557,-500.0,0.00015,30]
[408010717,1773022243566,-500.0,0.00015,30]
[408010718,1773022243575,-500.0,0.00015,30]
[408010719,1773022243584,-500.0,0.00015,30]
[408010720,1773022243594,-500.0,0.00015,30]
[408010721,1773022243603,-500.0,0.00015,30]
[408010722,1773022243612,-500.0,0.00015,30]
[408010723,1773022243621,-500.0,0.00015,30]
[408010724,1773022243631,-500.0,0.00015,30]
[408010725,1773022243639,-500.0,0.00015,30]
[408010726,1773022243649,-500.0,0.00015,30]
[408010727,1773022243658,-500.0,0.00015,30]
[408010728,1773022243667,-500.0,0.00015,30]
[408010729,1773022243676,-500.0,0.00015,30]
[408010730,1773022243686,-500.0,0.00015,30]
[408010731,1773022243695,-500.0,0.00015,30]
[408010732,1773022243705,-500.0,0.00015,30]
[408010733,1773022243718,-500.0,0.00015,30]
[408010734,1773022243727,-500.0,0.00015,30]
[408010735,1773022243736,-500.0,0.00015,30]
[408010737,1773022243747,-178.58,0.00015017,2]
[408010738,1773022243756,-166.67,0.00015046,2]
[408010739,1773022243766,-225.99,0.00015068,2]
[408010740,1773022243775,-3702.83815724,0.00015188,2]
[408010741,1773022243785,-13674.6046725,0.00015217,2]
[408010742,1773022243794,-500.0,0.00015246,2]
[408010743,1773022243804,-928.7271959,0.00015325,2]
[408010744,1773022243813,-178.58,0.00015357,2]
[408010745,1773022243823,-1000.0,0.00015421,2]
[408010746,1773022243833,-500.0,0.00015421,2]
[408010747,1773022243842,-433.0,0.00015496,2]
[408010748,1773022243854,-1173.94449852,0.00015611,2]
[408010749,1773022243865,-178.58,0.00015696,2]
[408010750,1773022243875,-163.32,0.00015696,2]
[408010751,1773022243884,-2351.0,0.00015696,2]
[408010752,1773022243893,-166.67,0.00015792,2]
[408010753,1773022243903,-476.9974077,0.00015882,2]
[408010754,1773022243912,-13674.6046725,0.00015886,2]
[408010755,1773022243921,-928.7271959,0.00015897,2]
[408010756,1773022243930,-150.0,0.000159,2]
[408010757,1773022243940,-200.72181509,0.000159,2]
[408010758,1773022243949,-1500.0,0.00015968,2]
[408010759,1773022243958,-178.58,0.00016035,2]
[408010760,1773022243967,-1039.80962999,0.00016082,2]
[408010761,1773022243976,-10000.00935452,0.000162,5]
[408010762,1773022243985,-178.58,0.00016374,2]
[408010763,1773022243995,-472.66,0.00016438,3]
[408010764,1773022244007,-928.7271959,0.00016469,2]
[408010765,1773022244016,-2001.47423274,0.00016516,2]
[408010766,1773022244025,-13674.6046725,0.00016555,2]
[408010767,1773022244035,-178.58,0.00016713,2]
[408010768,1773022244044,-736.0,0.00016802,2]
[408010769,1773022244053,-150.0,0.0001683,2]
[408010770,1773022244062,-23887.51,0.00016922,2]
[408010771,1773022244071,-5287.15,0.00016922,2]
[408010772,1773022244080,-157.0,0.00016931,3]
[408010773,1773022244089,-2638.32327346,0.00017,2]
[408010774,1773022244098,-502.0,0.00017,2]
[408010775,1773022244109,-502.00003,0.00017,2]
[408010776,1773022244118,-502.0,0.00017,2]
[408010777,1773022244127,-928.7271959,0.00017041,2]
[408010778,1773022244136,-178.58,0.00017052,2]
[408010779,1773022244145,-3283.0,0.00017068,2]
[408010780,1773022244156,-13674.6046725,0.00017224,2]
[408010781,1773022244167,-3292.0,0.00017266,2]
[408010782,1773022244176,-1259.83444851,0.00017327,2]
[408010783,1773022244185,-178.58,0.00017391,2]
[408010784,1773022244196,-1253.73,0.00017447,2]
[408010785,1773022244205,-2323.32,0.00017553,2]
[408010786,1773022244219,-250.45472089,0.0001758,2]
[408010787,1773022244229,-1500.0,0.00017589,2]
[408010788,1773022244238,-928.7271959,0.00017612,2]
[408010789,1773022244247,-3240.0,0.00017615,2]
[408010790,1773022244256,-178.58,0.0001773,2]
[408010791,1773022244266,-13674.6046725,0.00017893,2]
[408010792,1773022244277,-12798.57558659,0.0001799,2]
[408010793,1773022244287,-43912.61795931,0.00018,2]
[408010794,1773022244296,-178.58,0.0001807,2]
[408010795,1773022244306,-1700.0,0.00018082,7]
[408010796,1773022244317,-1400.0,0.00018082,7]
[408010797,1773022244327,-928.7271959,0.00018184,2]
[408010798,1773022244337,-1180.0,0.00018213,2]
[408010799,1773022244348,-600.0,0.00018356,7]
[408010800,1773022244357,-160.0,0.000184,2]
[408010801,1773022244367,-502.0,0.000184,3]
[408010802,1773022244376,-178.58,0.00018409,2]
[408010803,1773022244385,-13674.6046725,0.00018562,2]
[408010804,1773022244395,-295.03,0.00018736,2]
[408010805,1773022244405,-178.58,0.00018748,2]
[408010806,1773022244415,-928.7271959,0.00018756,2]
[408010807,1773022244426,-453.11,0.00018814,2]
[408010808,1773022244436,-163.32,0.00018835,2]
[408010809,1773022244446,-4609.0,0.00018993,2]
[408010810,1773022244455,-469.81234074,0.00019,2]
[408010811,1773022244464,-2625.30355632,0.00019,2]
[408010812,1773022244473,-491.0,0.00019005,2]
[408010813,1773022244482,-160.0,0.00019054,2]
[408010814,1773022244490,-172.87392778,0.00019054,2]
[408010815,1773022244499,-178.58,0.00019087,2]
[408010816,1773022244508,-1046.666,0.000191,2]
[408010817,1773022244516,-1342.0,0.000191,2]
[408010818,1773022244526,-622.461,0.000191,2]
[408010819,1773022244535,-150.294,0.000191,2]
[408010820,1773022244543,-1279.0,0.000191,2]
[408010821,1773022244552,-491.0,0.00019129,2]
[408010822,1773022244562,-1213.0,0.0001915,2]
[408010823,1773022244571,-491.0,0.0001916,2]
[408010824,1773022244580,-586.30656723,0.00019165,2]
[408010825,1773022244589,-1700.0,0.00019178,7]
[408010826,1773022244598,-1400.0,0.00019178,7]
[408010827,1773022244607,-518.64,0.00019178,30]
[408010828,1773022244617,-267.4,0.00019192,2]
[408010829,1773022244626,-2000.0,0.000192,2]
[408010830,1773022244636,-4095.49,0.00019206,2]
[408010831,1773022244645,-1755.21,0.00019206,2]
[408010832,1773022244655,-13674.6046725,0.00019231,2]
[408010833,1773022244664,-267.4,0.00019265,2]
[408010834,1773022244674,-3760.76,0.00019297,2]
[408010835,1773022244683,-2461.0,0.00019297,2]
[408010836,1773022244692,-416.395,0.00019297,2]
[408010837,1773022244960,-928.7271959,0.00019328,2]
[408010838,1773022244973,-267.4,0.00019339,2]
[408010839,1773022244983,-847.0,0.0001936,2]
[408010840,1773022244993,-8345.9,0.00019364,2]
[408010841,1773022245003,-209.0,0.00019394,2]
[408010842,1773022245014,-1400.0,0.000194,7]
[408010843,1773022245025,-267.4,0.00019412,2]
[408010844,1773022245035,-178.58,0.00019426,2]
[408010845,1773022245044,-600.0,0.00019452,7]
[408010846,1773022245054,-1000.0,0.00019452,2]
[408010847,1773022245063,-157.0,0.00019465,3]
[408010848,1773022245073,-153.33762345,0.00019485,2]
[408010849,1773022245082,-267.4,0.00019486,2]
[408010850,1773022245092,-209.0,0.00019488,2]
[408010851,1773022245103,-209.0,0.00019494,2]
[408010852,1773022245112,-200.0,0.000195,7]
[408010853,1773022245124,-241.92,0.000195,2]
[408010854,1773022245134,-500.0,0.00019507,2]
[408010855,1773022245144,-500.0,0.00019507,2]
[408010856,1773022245154,-150.0,0.00019507,2]
[408010857,1773022245163,-150.0,0.00019507,2]
[408010858,1773022245172,-150.0,0.00019507,2]
[408010859,1773022245181,-500.0,0.00019507,2]
[408010860,1773022245191,-500.0,0.00019507,2]
[408010861,1773022245200,-500.0,0.00019507,2]
[408010862,1773022245209,-150.0,0.00019507,2]
[408010863,1773022245220,-150.0,0.00019507,2]
[408010864,1773022245231,-150.0,0.00019507,2]
[408010865,1773022245241,-150.0,0.00019507,2]
[408010866,1773022245251,-150.0,0.00019507,2]
[408010867,1773022245263,-150.0,0.00019507,2]
[408010868,1773022245273,-150.0,0.00019507,2]
[408010869,1773022245284,-500.0,0.00019507,2]
[408010870,1773022245295,-246.57431948,0.00019507,2]
[408010871,1773022245304,-500.0,0.00019507,2]
[408010872,1773022245314,-177.99151511,0.00019507,2]
[408010873,1773022245325,-500.0,0.00019507,2]
[408010874,1773022245335,-150.0,0.00019507,2]
[408010875,1773022245346,-150.0,0.00019507,2]
[408010876,1773022245355,-500.0,0.00019507,2]
[408010877,1773022245368,-150.0,0.00019507,2]
[408010878,1773022245377,-500.0,0.00019507,2]
[408010879,1773022245386,-150.0,0.00019507,2]
[408010880,1773022245396,-500.0,0.00019507,2]
[408010881,1773022245406,-500.0,0.00019507,2]
[408010882,1773022245417,-500.0,0.00019507,2]
[408010883,1773022245427,-500.0,0.00019507,2]
[408010884,1773022245437,-150.0,0.00019507,2]
[408010885,1773022245447,-500.0,0.00019507,2]
[408010886,1773022245457,-150.0,0.00019507,2]
[408010887,1773022245466,-150.0,0.00019507,2]
[408010888,1773022245476,-150.0,0.00019507,2]
[408010889,1773022245487,-500.0,0.00019507,2]
[408010890,1773022245497,-267.4,0.00019559,2]
[408010891,1773022245506,-618.09099825,0.00019562,2]
[408010892,1773022245515,-501.82767376,0.00019562,2]
[408010893,1773022245524,-200.0,0.00019562,2]
[408010894,1773022245534,-150.0,0.00019562,2]
[408010895,1773022245543,-150.0,0.00019562,2]
[408010896,1773022245552,-500.0,0.00019562,2]
[408010897,1773022245561,-500.0,0.00019562,2]
[408010898,1773022245571,-500.0,0.00019562,2]
[408010899,1773022245581,-150.0,0.00019562,2]
[408010900,1773022245592,-150.0,0.00019562,2]
[408010901,1773022245602,-150.0,0.00019562,2]
[408010902,1773022245612,-167.01402663,0.00019562,2]
[408010903,1773022245621,-150.0,0.00019562,2]
[408010904,1773022245631,-150.0,0.00019562,2]
[408010905,1773022245640,-150.0,0.00019562,2]
[408010906,1773022245649,-500.0,0.00019562,2]
[408010907,1773022245658,-500.0,0.00019562,2]
[408010908,1773022245667,-500.0,0.00019562,2]
[408010909,1773022245676,-150.0,0.00019562,2]
[408010910,1773022245685,-502.15724466,0.00019562,2]
[408010911,1773022245694,-150.0,0.00019562,2]
[408010912,1773022245703,-500.0,0.00019562,2]
[408010913,1773022245715,-150.0,0.00019562,2]
[408010914,1773022245723,-500.0,0.00019562,2]
[408010915,1773022245733,-500.0,0.00019562,2]
[408010916,1773022245742,-500.0,0.00019562,2]
[408010917,1773022245753,-500.0,0.00019562,2]
[408010918,1773022245762,-205.74072423,0.00019562,2]
[408010919,1773022245771,-150.0,0.00019562,2]
[408010920,1773022245780,-500.0,0.00019562,2]
[408010921,1773022245792,-150.0,0.00019562,2]
[408010922,1773022245801,-150.0,0.00019562,2]
[408010923,1773022245810,-508.18387873,0.00019562,2]
[408010924,1773022245819,-491.0,0.00019586,2]
[408010925,1773022245828,-1414.677292,0.000196,2]
[408010926,1773022245837,-425.32611708,0.000196,2]
[408010927,1773022245847,-200.0,0.000196,7]
[408010928,1773022245856,-150.0,0.00019617,2]
[408010929,1773022245866,-277.09096331,0.00019617,2]
[408010930,1773022245875,-250.0,0.00019617,2]
[408010931,1773022245884,-500.0,0.00019617,2]
[408010932,1773022245894,-252.59725118,0.00019617,2]
[408010933,1773022245903,-235.50154825,0.00019617,2]
[408010934,1773022245912,-232.79888752,0.00019617,2]
[408010935,1773022245922,-152.96458514,0.00019617,2]
[408010936,1773022245932,-150.0,0.00019617,2]
[408010937,1773022245942,-250.67426717,0.00019617,2]
[408010938,1773022245951,-150.0,0.00019617,2]
[408010939,1773022245962,-500.0,0.00019617,2]
[408010940,1773022245972,-500.0,0.00019617,2]
[408010941,1773022245982,-202.77032458,0.00019617,2]
[408010942,1773022245994,-150.0,0.00019617,2]
[408010943,1773022246006,-150.0,0.00019617,2]
[408010944,1773022246016,-500.0,0.00019617,2]
[408010945,1773022246025,-150.0,0.00019617,2]
[408010946,1773022246037,-354.25959733,0.00019617,2]
[408010947,1773022246048,-511.4784502,0.00019617,2]
[408010948,1773022246058,-502.75697176,0.00019617,2]
[408010949,1773022246069,-511.85670277,0.00019617,2]
[408010950,1773022246079,-509.59431566,0.00019617,2]
[408010951,1773022246088,-150.58067844,0.00019617,2]
[408010952,1773022246097,-209.72265383,0.00019617,2]
[408010953,1773022246107,-150.0,0.00019617,2]
[408010954,1773022246117,-267.4,0.00019633,2]
[408010955,1773022246126,-580.0,0.00019634,5]
[408010956,1773022246135,-150.0,0.00019671,2]
[408010957,1773022246144,-500.0,0.00019671,2]
[408010958,1773022246154,-194.64589217,0.00019671,2]
[408010959,1773022246163,-150.0,0.00019671,2]
[408010960,1773022246175,-500.0,0.00019671,2]
[408010961,1773022246186,-500.0,0.00019671,2]
[408010962,1773022246197,-150.0,0.00019671,2]
[408010963,1773022246207,-537.03813108,0.00019671,2]
[408010964,1773022246217,-150.0,0.00019671,2]
[408010965,1773022246226,-202.34824749,0.00019671,2]
[408010966,1773022246236,-292.86837004,0.00019671,2]
[408010967,1773022246246,-2806.0,0.0001968,2]
[408010968,1773022246255,-2645.0,0.0001968,2]
[408010969,1773022246265,-1832.98826504,0.000197,2]
[408010970,1773022246274,-200.0,0.000197,7]
[408010971,1773022246285,-267.4,0.00019706,2]
[408010972,1773022246295,-350.0,0.0001971,2]
[408010973,1773022246306,-1000.0,0.00019726,2]
[408010974,1773022246317,-150.0,0.00019726,2]
[408010975,1773022246328,-280.93851437,0.00019726,2]
[408010976,1773022246342,-256.44664571,0.00019726,2]
[408010977,1773022246353,-190.06683403,0.00019726,2]
[408010978,1773022246363,-500.0,0.00019726,2]
[408010979,1773022246373,-150.0,0.00019726,2]
[408010980,1773022246383,-150.0,0.00019726,2]
[408010981,1773022246393,-178.58,0.00019765,2]
[408010982,1773022246403,-267.4,0.0001978,2]
[408010983,1773022246412,-151.78439564,0.00019781,2]
[408010984,1773022246422,-394.63500113,0.00019781,2]
[408010985,1773022246432,-250.0,0.00019781,2]
[408010986,1773022246441,-152.28254993,0.00019781,2]
[408010988,1773022246451,-1917.05,0.00019791,2]
[408010989,1773022246461,-152.8085332,0.00019799,2]
[408010990,1773022246471,-32927.6463,0.000198,2]
[408010991,1773022246480,-1000.0,0.000198,2]
[408010992,1773022246489,-172.82949155,0.000198,7]
[408010993,1773022246498,-502.0,0.000198,4]
[408010994,1773022246508,-200.0,0.000198,7]
[408010995,1773022246517,-2000.0,0.000198,2]
[408010996,1773022246530,-1253.72,0.00019802,2]
[408010997,1773022246540,-135663.30791463,0.0001981,2]
[408010998,1773022246549,-151.9746972,0.00019816,2]
[408011000,1773022246559,-200.0,0.0001984,2]
[408011002,1773022246568,-267.4,0.00019853,2]
[408011003,1773022246578,-209.0,0.00019863,2]
[408011004,1773022246587,-495.77458677,0.00019873,2]
[408011005,1773022246596,-501.66559118,0.00019873,2]
[408011006,1773022246606,-500.0,0.00019873,2]
[408011007,1773022246615,-150.0,0.00019873,2]
[408011008,1773022246625,-500.0,0.00019873,2]
[408011009,1773022246634,-500.0,0.00019873,2]
[408011010,1773022246643,-500.0,0.00019873,2]
[408011011,1773022246653,-781.45,0.00019881,2]
[408011012,1773022246662,-25000.0,0.00019891,3]
[408011013,1773022246671,-24422.82791355,0.000199,3]
[408011014,1773022246680,-2000.0,0.000199,2]
[408011015,1773022246690,-945.9669323,0.000199,2]
[408011016,1773022246699,-5800.0,0.000199,2]
[408011017,1773022246711,-25000.0,0.000199,3]
[408011018,1773022246727,-172.82949155,0.000199,3]
[408011019,1773022246736,-296.08569084,0.000199,3]
[408011020,1773022246745,-1020.0,0.000199,7]
[408011021,1773022246756,-928.7271959,0.000199,2]
[408011022,1773022246766,-586.30656723,0.000199,2]
[408011023,1773022246775,-13674.6046725,0.000199,2]
[408011024,1773022246785,-1259.83444851,0.000199,2]
[408011025,1773022246795,-350.0,0.00019908,3]
[408011026,1773022246803,-267.4,0.00019927,2]
[408011027,1773022246813,-624.0,0.00019944,2]
[408011028,1773022246822,-150.0,0.00019944,2]
[408011029,1773022246831,-150.0,0.00019944,2]
[408011030,1773022246841,-150.0,0.00019944,2]
[408011031,1773022246850,-259.0,0.00019944,2]
[408011032,1773022246859,-1108.21987424,0.0001995,15]
[408011033,1773022246868,-350.0,0.00019958,2]
[408011034,1773022246878,-150.0,0.00019962,2]
[408011035,1773022246888,-500.0,0.00019973,2]
[408011036,1773022246897,-500.0,0.00019973,2]
[408011037,1773022246906,-500.0,0.00019973,2]
[408011038,1773022246916,-150.0,0.00019973,2]
[408011039,1773022246931,-78317.9665364,0.00019978,2]
[408011040,1773022246940,-621.2708767,0.0001998,2]
[408011041,1773022246949,-13024.7408994,0.0001998,2]
[408011042,1773022246959,-119282.37042679,0.0001998,2]
[408011043,1773022246968,-278.8,0.00019985,2]
[408011044,1773022246977,-151.0,0.00019997,2]
[408011045,1773022246986,-150.938,0.00019997,2]
[408011046,1773022246995,-300.0,0.00019999,2]
[408011047,1773022247006,-33181.70399474,0.00019999,2]
[408011048,1773022247016,-349.03538361,0.00019999,2]
[408011049,1773022247026,-294.75283121,0.00019999,2]
[408011050,1773022247036,-500.0,0.00019999,2]
[408011051,1773022247049,-236.58326722,0.00019999,2]
[408011052,1773022247060,-500.0,0.00019999,2]
[408011053,1773022247070,-500.0,0.00019999,2]
[408011054,1773022247079,-189.31400926,0.00019999,2]
[408011055,1773022247088,-4105.0,0.0002,2]
[408011056,1773022247098,-217840.54342601,0.0002,2]
[408011057,1773022247108,-1345.181768,0.0002,2]
[408011058,1773022247118,-287.74388444,0.0002,2]
[408011059,1773022247129,-1140.32875674,0.0002,30]
[408011060,1773022247139,-1272.63286919,0.0002,2]
[408011061,1773022247148,-259622.65581273,0.0002,2]
[408011062,1773022247229,-7364.04410689,0.0002,2]
[408011063,1773022247241,-4850.87506,0.0002,2]
[408011064,1773022247334,-466.789003,0.0002,2]
[408011065,1773022247351,-681.68868639,0.0002,2]
[408011066,1773022247557,-46758.50476668,0.0002,2]
[408011067,1773022247574,-951.27722751,0.0002,2]
[408011068,1773022247594,-9118.3804225,0.0002,2]
[408011069,1773022247608,-13459.0,0.0002,2]
[408011070,1773022247623,-38889.5790644,0.0002,2]
[408011071,1773022299232,10000.0,0.0002,120]
[408011072,1773022308230,10000.0,0.0002,120]
[408011073,1773022317336,10000.0,0.0002,120]
[408011074,1773022327136,10000.0,0.0002,120]
[408011075,1773022336381,10000.0,0.0002,120]
[408011076,1773022341836,500.0,8e-05,2]
[408011077,1773022342317,500.0,8e-05,2]
[408011078,1773022344286,500.0,8e-05,2]
[408011079,1773022344743,500.0,8e-05,2]
[408011080,1773022345232,500.0,8e-05,2]
[408011081,1773022345483,10000.0,0.0002,120]
[408011082,1773022345689,500.0,8e-05,2]
[408011083,1773022346370,631.20725913,8e-05,2]
[408011084,1773022346579,500.0,8e-05,2]
[408011085,1773022346958,500.0,8e-05,2]
[408011086,1773022347454,500.0,8e-05,2]
[408011087,1773022348358,919.41203317,8e-05,2]
[408011088,1773022350706,505.1580482,8e-05,2]
[408011089,1773022350735,500.0,8e-05,2]
[408011090,1773022351200,500.0,8e-05,2]
[408011091,1773022352197,846.02005319,8e-05,2]
[408011092,1773022353424,10000.0,0.0002,120]
[408011093,1773022353641,500.0,8e-05,2]
[408011094,1773022354117,500.0,8e-05,2]
[408011095,1773022354635,500.0,8e-05,2]
[408011096,1773022355123,98.21260631,8e-05,2]
[408011097,1773022355146,401.78739369,8e-05,2]
[408011098,1773022355600,500.0,8e-05,2]
[408011099,1773022356094,500.0,8e-05,2]
[408011100,1773022356583,500.0,8e-05,2]
[408011101,1773022372667,4608.1,0.0002,120]
[408011102,1773022642005,500.0,8e-05,2]
[408011103,1773022642509,500.0,8e-05,2]
[408011104,1773022643021,500.0,8e-05,2]
[408011213,1773022825055,5944.0,0.00011503,2]
[408011241,1773022942549,500.0,8e-05,2]
[408011242,1773022943059,500.0,8e-05,2]
[408011243,1773022943552,634.56315158,8e-05,2]
[408011248,1773023053537,-156.67,0.00014,2]
[408011249,1773023053559,-265.0,0.00014,2]
[408011250,1773023053580,-269.62516553,0.00014008,2]
[408011251,1773023053602,-250.0,0.00014016,2]
[408011252,1773023053624,-280.56925839,0.00014029,2]
[408011253,1773023053645,-300.0,0.00014032,2]
[408011254,1773023053666,-250.0,0.00014084,2]